[Event "Schack-SM 2024: Mastarklassen"]
[Site "Fortnox Arena, Hejaregatan 5, Vaxjo, Sweden"]
[Date "2024.07.01"]
[Round "3.13"]
[White "Granath, Jonas"]
[Black "Carlstrom, Niklas"]
[Result "1-0"]
[TimeControl "90 minutes for 40 moves + 30 minutes for the rest of the game + 30 seconds per move from move one."]
[WhiteElo "1948"]
[BlackElo "2100"]

1. e4 {[%clk 01:30:57]} d6 {[%clk 01:30:40]} {[%emt 00:00:17]} 2. d4 {[%clk
01:31:16]} {[%emt 00:00:13]} Nf6 {[%clk 01:30:58]} {[%emt 00:00:11]} 3. Nc3
{[%clk 01:31:22]} {[%emt 00:00:25]} Nbd7 {[%clk 01:31:11]} {[%emt 00:00:16]} 4.
Nf3 {[%clk 01:29:33]} {[%emt 00:02:20]} e5 {[%clk 01:31:21]} {[%emt 00:00:19]}
5. Be2 {[%clk 01:24:50]} {[%emt 00:05:13]} c6 {[%clk 01:29:45]} {[%emt
00:02:05]} 6. a4 {[%clk 01:24:20]} {[%emt 00:01:01]} Qc7 {[%clk 01:27:36]}
{[%emt 00:02:38]} 7. Be3 {[%clk 01:23:25]} {[%emt 00:01:26]} Be7 {[%clk
01:27:03]} {[%emt 00:01:02]} 8. h3 {[%clk 01:23:23]} {[%emt 00:00:33]} h6
{[%clk 01:26:19]} {[%emt 00:01:14]} 9. Qd2 {[%clk 01:20:42]} {[%emt 00:03:10]}
a5 {[%clk 01:21:30]} {[%emt 00:05:19]} 10. Rd1 {[%clk 01:10:19]} {[%emt
00:10:54]} Nf8 {[%clk 01:19:12]} {[%emt 00:02:48]} 11. Qc1 {[%clk 00:55:14]}
{[%emt 00:15:35]} Ng6 {[%clk 01:13:21]} {[%emt 00:06:20]} 12. dxe5 {[%clk
00:51:50]} {[%emt 00:03:56]} dxe5 {[%clk 01:13:28]} {[%emt 00:00:22]} 13. Nd2
{[%clk 00:51:26]} {[%emt 00:00:55]} Bb4 {[%clk 01:00:37]} {[%emt 00:13:20]} 14.
Nc4 {[%clk 00:44:36]} {[%emt 00:07:20]} O-O {[%clk 00:58:55]} {[%emt 00:02:12]}
15. Bb6 {[%clk 00:41:27]} {[%emt 00:03:39]} Qe7 {[%clk 00:58:35]} {[%emt
00:00:49]} 16. Qe3 {[%clk 00:40:03]} {[%emt 00:01:55]} Nd7 {[%clk 00:49:59]}
{[%emt 00:09:06]} 17. Qg3 {[%clk 00:34:14]} {[%emt 00:06:20]} Nxb6 {[%clk
00:46:54]} {[%emt 00:03:34]} 18. Nxb6 {[%clk 00:34:40]} {[%emt 00:00:04]} Rb8
{[%clk 00:46:51]} {[%emt 00:00:32]} 19. Nxc8 {[%clk 00:34:41]} {[%emt
00:00:31]} Rbxc8 {[%clk 00:47:11]} {[%emt 00:00:09]} 20. O-O {[%clk 00:34:57]}
{[%emt 00:00:15]} Nf4 {[%clk 00:42:07]} {[%emt 00:05:32]} 21. Bg4 {[%clk
00:24:57]} {[%emt 00:10:31]} Rcd8 {[%clk 00:37:23]} {[%emt 00:05:14]} 22. Ne2
{[%clk 00:25:06]} {[%emt 00:00:20]} h5 {[%clk 00:31:39]} {[%emt 00:06:14]} 23.
Bf3 {[%clk 00:24:25]} {[%emt 00:01:13]} Bd2 {[%clk 00:27:22]} {[%emt 00:04:46]}
24. h4 {[%clk 00:22:27]} {[%emt 00:02:28]} Qe6 {[%clk 00:21:50]} {[%emt
00:06:01]} 25. Qh2 {[%clk 00:17:19]} {[%emt 00:05:39]} Qc4 {[%clk 00:16:11]}
{[%emt 00:06:08]} 26. Nxf4 {[%clk 00:17:00]} {[%emt 00:00:50]} Bxf4 {[%clk
00:16:24]} {[%emt 00:00:17]} 27. g3 {[%clk 00:16:41]} {[%emt 00:00:49]} Bd2
{[%clk 00:15:03]} {[%emt 00:01:50]} 28. c3 {[%clk 00:13:21]} {[%emt 00:03:52]}
Qxa4 {[%clk 00:14:32]} {[%emt 00:01:00]} 29. Qh3 {[%clk 00:13:16]} {[%emt
00:00:35]} g6 {[%clk 00:10:10]} {[%emt 00:04:52]} 30. g4 {[%clk 00:13:16]}
{[%emt 00:00:30]} hxg4 {[%clk 00:07:39]} {[%emt 00:03:01]} 31. Qxg4 {[%clk
00:13:37]} {[%emt 00:00:10]} Rd6 {[%clk 00:06:41]} {[%emt 00:01:27]} 32. h5
{[%clk 00:13:39]} {[%emt 00:00:28]} Rfd8 {[%clk 00:05:17]} {[%emt 00:01:53]} 33.
Rxd2 {[%clk 00:13:20]} {[%emt 00:00:50]} Rxd2 {[%clk 00:05:37]} {[%emt
00:00:10]} 34. hxg6 {[%clk 00:13:44]} {[%emt 00:00:06]} R2d6 {[%clk 00:02:56]}
{[%emt 00:03:10]} 35. gxf7+ {[%clk 00:13:08]} {[%emt 00:01:08]} Kxf7 {[%clk
00:03:19]} {[%emt 00:00:06]} 36. Qf5+ {[%clk 00:13:07]} {[%emt 00:00:32]} Ke7
{[%clk 00:01:27]} {[%emt 00:02:22]} 37. Qh7+ {[%clk 00:13:14]} {[%emt
00:00:22]} Kf8 {[%clk 00:01:31]} {[%emt 00:00:26]} 38. Qh8+ {[%clk 00:12:50]}
{[%emt 00:00:54]} Ke7 {[%clk 00:01:41]} {[%emt 00:00:20]} 39. Qg7+ {[%clk
00:12:45]} {[%emt 00:00:35]} 1-0

[Event "Schack-SM 2024: Mastarklassen"]
[Site "Fortnox Arena, Hejaregatan 5, Vaxjo, Sweden"]
[Date "2024.07.01"]
[Round "3.14"]
[White "Joensson, Oscar"]
[Black "Ask, Josef"]
[Result "1-0"]
[TimeControl "90 minutes for 40 moves + 30 minutes for the rest of the game + 30 seconds per move from move one."]
[BlackTitle "FM"]
[WhiteElo "1989"]
[BlackElo "2136"]

1. d4 {[%clk 01:30:57]} Nf6 {[%clk 01:30:44]} {[%emt 00:00:14]} 2. c4 {[%clk
01:31:22]} {[%emt 00:00:07]} b6 {[%clk 01:30:19]} {[%emt 00:00:56]} 3. Nf3
{[%clk 01:31:16]} {[%emt 00:00:35]} Bb7 {[%clk 01:30:29]} {[%emt 00:00:20]} 4.
Nc3 {[%clk 01:26:25]} {[%emt 00:05:21]} e6 {[%clk 01:28:55]} {[%emt 00:02:03]}
5. a3 {[%clk 01:25:01]} {[%emt 00:01:55]} d5 {[%clk 01:27:20]} {[%emt
00:02:05]} 6. cxd5 {[%clk 01:13:23]} {[%emt 00:12:09]} Nxd5 {[%clk 01:24:57]}
{[%emt 00:02:53]} 7. Bg5 {[%clk 01:12:29]} {[%emt 00:01:23]} f6 {[%clk
01:20:09]} {[%emt 00:05:18]} 8. Bh4 {[%clk 01:09:24]} {[%emt 00:03:35]} Nxc3
{[%clk 01:17:43]} {[%emt 00:02:57]} 9. bxc3 {[%clk 01:09:43]} {[%emt 00:00:11]}
g5 {[%clk 01:15:12]} {[%emt 00:03:01]} 10. Bg3 {[%clk 01:10:03]} {[%emt
00:00:09]} h5 {[%clk 01:14:13]} {[%emt 00:01:29]} 11. h3 {[%clk 00:53:57]}
{[%emt 00:16:37]} Nd7 {[%clk 01:07:01]} {[%emt 00:07:41]} 12. Qc2 {[%clk
00:50:30]} {[%emt 00:03:57]} Kf7 {[%clk 01:05:10]} {[%emt 00:02:21]} 13. e3
{[%clk 00:49:35]} {[%emt 00:01:25]} Bh6 {[%clk 00:53:51]} {[%emt 00:11:50]} 14.
Bc4 {[%clk 00:44:09]} {[%emt 00:05:55]} Qe7 {[%clk 00:50:36]} {[%emt 00:03:46]}
15. Rd1 {[%clk 00:24:27]} {[%emt 00:20:11]} Kg7 {[%clk 00:43:05]} {[%emt
00:08:01]} 16. Ba2 {[%clk 00:13:45]} {[%emt 00:11:13]} Nf8 {[%clk 00:38:46]}
{[%emt 00:04:48]} 17. d5 {[%clk 00:11:11]} {[%emt 00:03:04]} e5 {[%clk
00:37:47]} {[%emt 00:01:30]} 18. O-O {[%clk 00:08:07]} {[%emt 00:03:33]} Rd8
{[%clk 00:34:29]} {[%emt 00:03:48]} 19. Qe4 {[%clk 00:07:39]} {[%emt 00:00:58]}
Qxa3 {[%clk 00:27:32]} {[%emt 00:07:28]} 20. Bxe5 {[%clk 00:06:08]} {[%emt
00:02:01]} Qe7 {[%clk 00:25:25]} {[%emt 00:02:37]} 21. d6 {[%clk 00:01:05]}
{[%emt 00:05:33]} cxd6 {[%clk 00:23:03]} {[%emt 00:02:52]} 22. Bxf6+ {[%clk
00:01:27]} {[%emt 00:00:07]} Qxf6 {[%clk 00:22:57]} {[%emt 00:00:36]} 23. Qxb7+
{[%clk 00:01:51]} {[%emt 00:00:06]} Rd7 {[%clk 00:22:47]} {[%emt 00:00:40]} 24.
Qc6 {[%clk 00:01:49]} {[%emt 00:00:32]} g4 {[%clk 00:13:07]} {[%emt 00:10:11]}
25. Nd4 {[%clk 00:02:14]} {[%emt 00:00:04]} Re7 {[%clk 00:08:38]} {[%emt
00:04:59]} 26. Qd5 {[%clk 00:02:38]} {[%emt 00:00:05]} Re5 {[%clk 00:07:47]}
{[%emt 00:01:22]} 27. Qb7+ {[%clk 00:03:04]} {[%emt 00:00:05]} Kg6 {[%clk
00:02:58]} {[%emt 00:05:18]} 28. Bb1+ {[%clk 00:03:25]} {[%emt 00:00:09]} Kg5
{[%clk 00:03:11]} {[%emt 00:00:17]} 29. h4+ {[%clk 00:02:25]} {[%emt 00:01:30]}
Kxh4 {[%clk 00:03:05]} {[%emt 00:00:37]} 30. g3+ {[%clk 00:02:48]} {[%emt
00:00:06]} Kg5 {[%clk 00:03:16]} {[%emt 00:00:19]} 31. f4+ {[%clk 00:03:12]}
{[%emt 00:00:05]} gxf3 {[%clk 00:03:21]} {[%emt 00:00:26]} 32. Nxf3+ {[%clk
00:03:34]} {[%emt 00:00:08]} Kg4 {[%clk 00:03:34]} {[%emt 00:00:17]} 33. Nh2+
{[%clk 00:03:29]} {[%emt 00:00:33]} Kg5 {[%clk 00:03:11]} {[%emt 00:00:55]} 34.
Nf3+ {[%clk 00:02:52]} {[%emt 00:01:07]} Kg4 {[%clk 00:03:29]} {[%emt
00:00:12]} 35. Nxe5+ {[%clk 00:03:16]} {[%emt 00:00:06]} Qxe5 {[%clk 00:03:36]}
{[%emt 00:00:23]} 36. Rd4+ {[%clk 00:03:05]} {[%emt 00:00:41]} Kg5 {[%clk
00:03:05]} {[%emt 00:01:01]} 37. Rd5 {[%clk 00:03:30]} {[%emt 00:00:06]} Kg4
{[%clk 00:00:35]} {[%emt 00:03:00]} 38. Rxe5 {[%clk 00:03:52]} {[%emt
00:00:07]} dxe5 {[%clk 00:01:02]} {[%emt 00:00:03]} 39. Qf3+ {[%clk 00:04:07]}
{[%emt 00:00:14]} 1-0

[Event "Schack-SM 2024: Mastarklassen"]
[Site "Fortnox Arena, Hejaregatan 5, Vaxjo, Sweden"]
[Date "2024.07.01"]
[Round "3.1"]
[White "Walinder, Lars"]
[Black "Liden, Tommy"]
[Result "1/2-1/2"]
[TimeControl "90 minutes for 40 moves + 30 minutes for the rest of the game + 30 seconds per move from move one."]
[WhiteTitle "FM"]
[WhiteElo "2233"]
[BlackElo "2123"]

1. c4 {[%clk 01:30:55]} {[%emt 00:09:15]} e6 {[%clk 01:30:53]} {[%emt
00:00:08]} 2. Nc3 {[%clk 01:31:15]} {[%emt 00:00:09]} d5 {[%clk 01:31:16]}
{[%emt 00:00:06]} 3. e3 {[%clk 01:31:34]} {[%emt 00:00:12]} c6 {[%clk
01:31:33]} {[%emt 00:00:12]} 4. Nf3 {[%clk 01:31:38]} {[%emt 00:00:25]} f5
{[%clk 01:31:41]} {[%emt 00:00:23]} 5. g3 {[%clk 01:30:56]} {[%emt 00:01:12]}
Nf6 {[%clk 01:30:16]} {[%emt 00:01:55]} 6. cxd5 {[%clk 01:31:10]} {[%emt
00:00:16]} cxd5 {[%clk 01:29:49]} {[%emt 00:00:58]} 7. Bg2 {[%clk 01:30:44]}
{[%emt 00:00:55]} Nc6 {[%clk 01:28:10]} {[%emt 00:02:08]} 8. O-O {[%clk
01:28:47]} {[%emt 00:02:28]} Be7 {[%clk 01:25:54]} {[%emt 00:02:46]} 9. b3
{[%clk 01:21:13]} {[%emt 00:08:04]} O-O {[%clk 01:25:49]} {[%emt 00:00:35]} 10.
Bb2 {[%clk 01:19:08]} {[%emt 00:02:35]} b6 {[%clk 01:25:07]} {[%emt 00:01:12]}
11. d3 {[%clk 01:11:27]} {[%emt 00:08:10]} Ba6 {[%clk 01:11:51]} {[%emt
00:13:47]} 12. Ne2 {[%clk 01:05:16]} {[%emt 00:06:41]} Bd6 {[%clk 00:59:50]}
{[%emt 00:12:30]} 13. Ned4 {[%clk 00:54:03]} {[%emt 00:11:44]} Nxd4 {[%clk
00:55:51]} {[%emt 00:04:29]} 14. Nxd4 {[%clk 00:43:06]} {[%emt 00:11:27]} Qe7
{[%clk 00:56:00]} {[%emt 00:00:22]} 15. Qd2 {[%clk 00:32:29]} {[%emt 00:11:06]}
Rac8 {[%clk 00:53:16]} {[%emt 00:03:14]} 16. Rfc1 {[%clk 00:31:26]} {[%emt
00:01:32]} Bb4 {[%clk 00:50:59]} {[%emt 00:02:48]} 17. Qd1 {[%clk 00:31:13]}
{[%emt 00:00:43]} Qd7 {[%clk 00:47:16]} {[%emt 00:04:12]} 18. a3 {[%clk
00:29:12]} {[%emt 00:02:32]} Bd6 {[%clk 00:45:38]} {[%emt 00:02:06]} 19. Nf3
{[%clk 00:26:57]} {[%emt 00:02:45]} Rxc1 {[%clk 00:44:15]} {[%emt 00:01:54]} 20.
Rxc1 {[%clk 00:23:01]} {[%emt 00:04:26]} Rc8 {[%clk 00:44:42]} {[%emt
00:00:03]} 21. Bf1 {[%clk 00:21:03]} {[%emt 00:02:27]} Qe7 {[%clk 00:40:36]}
{[%emt 00:04:37]} 22. Rxc8+ {[%clk 00:18:46]} {[%emt 00:02:47]} Bxc8 {[%clk
00:41:03]} {[%emt 00:00:03]} 23. Qa1 {[%clk 00:17:51]} {[%emt 00:01:24]} Nd7
{[%clk 00:39:30]} {[%emt 00:02:03]} 24. Ne5 {[%clk 00:15:29]} {[%emt 00:02:52]}
Nxe5 {[%clk 00:38:03]} {[%emt 00:01:57]} 25. Bxe5 {[%clk 00:15:55]} {[%emt
00:00:05]} Qc7 {[%clk 00:37:38]} {[%emt 00:00:53]} 1/2-1/2

[Event "Schack-SM 2024: Mastarklassen"]
[Site "Fortnox Arena, Hejaregatan 5, Vaxjo, Sweden"]
[Date "2024.07.01"]
[Round "3.2"]
[White "Ljung, Harald"]
[Black "Mardell, Jimmy"]
[Result "1-0"]
[TimeControl "90 minutes for 40 moves + 30 minutes for the rest of the game + 30 seconds per move from move one."]
[WhiteElo "2101"]
[BlackElo "2186"]

1. d4 {[%clk 01:30:31]} {[%emt 00:00:22]} d5 {[%clk 01:30:54]} {[%emt
00:00:08]} 2. Nf3 {[%clk 01:30:27]} {[%emt 00:00:34]} Nf6 {[%clk 01:31:12]}
{[%emt 00:00:10]} 3. c4 {[%clk 01:30:49]} {[%emt 00:00:09]} c6 {[%clk
01:31:27]} {[%emt 00:00:15]} 4. Qc2 {[%clk 01:30:32]} {[%emt 00:00:47]} dxc4
{[%clk 01:27:31]} {[%emt 00:04:26]} 5. Qxc4 {[%clk 01:28:06]} {[%emt 00:02:57]}
Bf5 {[%clk 01:25:42]} {[%emt 00:02:18]} 6. g3 {[%clk 01:26:30]} {[%emt
00:02:06]} e6 {[%clk 01:24:48]} {[%emt 00:01:25]} 7. Bg2 {[%clk 01:26:38]}
{[%emt 00:00:21]} Be7 {[%clk 01:23:04]} {[%emt 00:02:14]} 8. O-O {[%clk
01:27:02]} {[%emt 00:00:06]} O-O {[%clk 01:23:14]} {[%emt 00:00:20]} 9. Nc3
{[%clk 01:25:55]} {[%emt 00:01:36]} Nbd7 {[%clk 01:16:05]} {[%emt 00:07:39]} 10.
a3 {[%clk 01:17:56]} {[%emt 00:08:30]} Ne4 {[%clk 01:04:45]} {[%emt 00:11:49]}
11. Rd1 {[%clk 01:14:37]} {[%emt 00:03:48]} a5 {[%clk 00:46:21]} {[%emt
00:18:56]} 12. Bf4 {[%clk 01:07:10]} {[%emt 00:07:56]} Nb6 {[%clk 00:44:27]}
{[%emt 00:02:25]} 13. Qa2 {[%clk 01:05:55]} {[%emt 00:01:44]} Nxc3 {[%clk
00:34:03]} {[%emt 00:10:54]} 14. bxc3 {[%clk 01:06:22]} {[%emt 00:00:04]} Nd5
{[%clk 00:34:26]} {[%emt 00:00:07]} 15. Bd2 {[%clk 01:05:53]} {[%emt 00:00:59]}
Nf6 {[%clk 00:32:58]} {[%emt 00:01:58]} 16. Ne5 {[%clk 01:04:20]} {[%emt
00:02:04]} a4 {[%clk 00:30:17]} {[%emt 00:03:10]} 17. Qb2 {[%clk 01:01:18]}
{[%emt 00:03:33]} Qc8 {[%clk 00:22:42]} {[%emt 00:08:03]} 18. Bg5 {[%clk
00:59:38]} {[%emt 00:02:10]} h6 {[%clk 00:20:05]} {[%emt 00:03:07]} 19. Bxf6
{[%clk 00:59:47]} {[%emt 00:00:20]} gxf6 {[%clk 00:20:26]} {[%emt 00:00:10]} 20.
Nc4 {[%clk 00:59:47]} {[%emt 00:00:30]} Qc7 {[%clk 00:19:54]} {[%emt 00:01:02]}
21. e4 {[%clk 00:58:43]} {[%emt 00:01:35]} Bg6 {[%clk 00:18:34]} {[%emt
00:01:49]} 22. Rab1 {[%clk 00:56:45]} {[%emt 00:02:27]} b5 {[%clk 00:18:28]}
{[%emt 00:00:36]} 23. Ne3 {[%clk 00:57:02]} {[%emt 00:00:13]} Qd6 {[%clk
00:16:52]} {[%emt 00:02:07]} 24. Ra1 {[%clk 00:54:57]} {[%emt 00:02:34]} Rab8
{[%clk 00:10:37]} {[%emt 00:06:47]} 25. Qe2 {[%clk 00:53:48]} {[%emt 00:01:38]}
f5 {[%clk 00:07:35]} {[%emt 00:03:32]} 26. e5 {[%clk 00:53:42]} {[%emt
00:00:36]} Qc7 {[%clk 00:07:45]} {[%emt 00:00:19]} 27. f4 {[%clk 00:53:31]}
{[%emt 00:00:41]} Rfc8 {[%clk 00:07:07]} {[%emt 00:01:08]} 28. h4 {[%clk
00:53:34]} {[%emt 00:00:29]} f6 {[%clk 00:06:08]} {[%emt 00:01:29]} 29. Kh2
{[%clk 00:53:05]} {[%emt 00:00:59]} fxe5 {[%clk 00:04:46]} {[%emt 00:01:52]} 30.
dxe5 {[%clk 00:52:51]} {[%emt 00:00:45]} Kh7 {[%clk 00:03:31]} {[%emt
00:01:43]} 31. Qa2 {[%clk 00:52:40]} {[%emt 00:00:42]} Rd8 {[%clk 00:01:01]}
{[%emt 00:03:01]} 32. Qxe6 {[%clk 00:52:21]} {[%emt 00:00:48]} Rxd1 {[%clk
00:01:03]} {[%emt 00:00:29]} 33. Rxd1 {[%clk 00:52:29]} {[%emt 00:00:21]} Rd8
{[%clk 00:01:29]} {[%emt 00:00:04]} 34. h5 {[%clk 00:52:09]} {[%emt 00:00:51]}
Bxh5 {[%clk 00:01:44]} {[%emt 00:00:12]} 35. Nxf5 {[%clk 00:52:03]} {[%emt
00:00:38]} Bf8 {[%clk 00:01:48]} {[%emt 00:00:27]} 36. Be4 {[%clk 00:45:56]}
{[%emt 00:06:36]} Bg6 {[%clk 00:02:13]} {[%emt 00:00:04]} 37. Ne7 {[%clk
00:45:50]} {[%emt 00:00:36]} Qxe7 {[%clk 00:02:00]} {[%emt 00:00:44]} 38. Qxg6+
{[%clk 00:46:16]} {[%emt 00:00:03]} Kh8 {[%clk 00:02:24]} {[%emt 00:00:06]} 39.
Rxd8 {[%clk 00:46:42]} 1-0

[Event "Schack-SM 2024: Mastarklassen"]
[Site "Fortnox Arena, Hejaregatan 5, Vaxjo, Sweden"]
[Date "2024.07.01"]
[Round "3.3"]
[White "Tuomainen, Felix"]
[Black "Bjorkman, Filip"]
[Result "0-1"]
[TimeControl "90 minutes for 40 moves + 30 minutes for the rest of the game + 30 seconds per move from move one."]
[WhiteTitle "FM"]
[WhiteElo "2255"]
[BlackElo "2116"]

1. d4 {[%clk 01:28:16]} {[%emt 00:02:37]} Nf6 {[%clk 01:30:54]} {[%emt
00:00:06]} 2. Nf3 {[%clk 01:28:29]} {[%emt 00:00:17]} g6 {[%clk 01:31:07]}
{[%emt 00:00:18]} 3. Nbd2 {[%clk 01:28:38]} {[%emt 00:00:21]} d5 {[%clk
01:31:09]} {[%emt 00:00:27]} 4. e3 {[%clk 01:27:28]} {[%emt 00:01:40]} Bg7
{[%clk 01:30:48]} {[%emt 00:00:50]} 5. b3 {[%clk 01:26:38]} {[%emt 00:01:23]}
c5 {[%clk 01:30:53]} {[%emt 00:00:24]} 6. Bb2 {[%clk 01:26:52]} {[%emt
00:00:15]} cxd4 {[%clk 01:29:52]} {[%emt 00:01:32]} 7. exd4 {[%clk 01:27:12]}
{[%emt 00:00:10]} Nc6 {[%clk 01:26:48]} {[%emt 00:03:33]} 8. Be2 {[%clk
01:26:35]} {[%emt 00:01:09]} O-O {[%clk 01:26:30]} {[%emt 00:00:47]} 9. O-O
{[%clk 01:27:00]} {[%emt 00:00:03]} Ne4 {[%clk 01:22:25]} {[%emt 00:04:35]} 10.
c4 {[%clk 01:21:49]} {[%emt 00:05:42]} Nxd2 {[%clk 00:56:45]} {[%emt 00:26:09]}
11. Qxd2 {[%clk 01:22:15]} {[%emt 00:00:05]} Bg4 {[%clk 00:57:09]} {[%emt
00:00:06]} 12. Rfd1 {[%clk 01:20:18]} {[%emt 00:02:28]} Re8 {[%clk 00:55:50]}
{[%emt 00:01:48]} 13. Qf4 {[%clk 01:10:56]} {[%emt 00:09:52]} Bxf3 {[%clk
00:40:31]} {[%emt 00:15:50]} 14. Qxf3 {[%clk 01:09:34]} {[%emt 00:01:53]} e5
{[%clk 00:38:38]} {[%emt 00:02:22]} 15. dxe5 {[%clk 00:57:39]} {[%emt
00:12:25]} d4 {[%clk 00:37:52]} {[%emt 00:01:16]} 16. b4 {[%clk 00:56:28]}
{[%emt 00:01:42]} Nxe5 {[%clk 00:21:26]} {[%emt 00:16:53]} 17. Qb3 {[%clk
00:54:46]} {[%emt 00:02:13]} Qh4 {[%clk 00:19:41]} {[%emt 00:02:16]} 18. Rab1
{[%clk 00:49:27]} {[%emt 00:05:49]} d3 {[%clk 00:16:31]} {[%emt 00:03:40]} 19.
Bf3 {[%clk 00:41:43]} {[%emt 00:08:13]} Nxf3+ {[%clk 00:16:42]} {[%emt
00:00:21]} 20. gxf3 {[%clk 00:42:12]} {[%emt 00:00:02]} Re2 {[%clk 00:16:06]}
{[%emt 00:01:05]} 21. Rf1 {[%clk 00:42:28]} {[%emt 00:00:13]} Rxb2 {[%clk
00:16:03]} {[%emt 00:00:34]} 22. Rxb2 {[%clk 00:42:55]} {[%emt 00:00:05]} Be5
{[%clk 00:14:22]} {[%emt 00:02:09]} 23. f4 {[%clk 00:43:12]} {[%emt 00:00:13]}
Qxf4 {[%clk 00:13:51]} {[%emt 00:01:01]} 24. f3 {[%clk 00:42:31]} {[%emt
00:01:12]} d2 {[%clk 00:14:13]} {[%emt 00:00:06]} 0-1